fUST/lending_fUST_20260219
["ID","MTS","AMOUNT","RATE_DAILY","PERIOD"]
[405971828,1771485045253,-750.0,0.00028983,2]
[405971829,1771485045263,-250.0,0.00028983,2]
[405971830,1771485045272,-250.0,0.00028983,2]
[405971831,1771485045282,-750.0,0.00028983,2]
[405971832,1771485045292,-217.15233878,0.00028983,2]
[405971833,1771485045300,-250.0,0.00028983,2]
[405971834,1771485045310,-250.0,0.00028983,2]
[405971835,1771485045320,-750.0,0.00028983,2]
[405971836,1771485045330,-225.18697532,0.00028983,2]
[405971837,1771485045340,-750.0,0.00028983,2]
[405971838,1771485045349,-233.51889341,0.00028983,2]
[405971839,1771485045359,-250.0,0.00028983,2]
[405971840,1771485045368,-417.07633844,0.00028983,2]
[405971841,1771485045377,-242.15909246,0.00028983,2]
[405971843,1771485045387,-500.0,0.00028983,2]
[405971844,1771485045396,-251.11897888,0.00028983,2]
[405971845,1771485045405,-250.0,0.00028983,2]
[405971846,1771485045417,-250.0,0.00028983,2]
[405971847,1771485045427,-500.0,0.00028983,2]
[405971848,1771485045436,-260.4103811,0.00028983,2]
[405971849,1771485045445,-250.0,0.00028983,2]
[405971850,1771485045455,-344.80563706,0.00028983,2]
[405971851,1771485045465,-500.0,0.00028983,2]
[405971852,1771485045474,-270.0455652,0.00028983,2]
[405971853,1771485045483,-500.0,0.00028983,2]
[405971854,1771485045493,-280.03725112,0.00028983,2]
[405971855,1771485045502,-500.0,0.00028983,2]
[405971856,1771485045511,-290.39862941,0.00028983,2]
[405971858,1771485045520,-500.0,0.00028983,2]
[405971860,1771485045529,-301.1433787,0.00028983,2]
[405971862,1771485045539,-500.0,0.00028983,2]
[405971864,1771485045547,-500.0,0.00028983,2]
[405971865,1771485045557,-500.0,0.00028983,2]
[405971866,1771485045566,-500.0,0.00028983,2]
[405971867,1771485045575,-176.07834204,0.00028983,2]
[405971868,1771485045584,-203.309012,0.00028983,2]
[405971869,1771485045594,-250.0,0.00028983,2]
[405971870,1771485045603,-317.54394179,0.0002899,2]
[405971871,1771485045615,-2680.87889995,0.0002899,2]
[405971873,1771485045812,-6291.59798741,0.0002899,2]
[405971895,1771485951105,9793.71,0.0001,2]
[405971896,1771485983972,10000.0,0.0001,3]
[405971897,1771485983999,10000.0,0.0001,3]
[405971900,1771486147442,-979.46138657,9.898e-05,2]
[405971901,1771486147463,-300.0,9.998e-05,2]
[405971902,1771486147486,-198.03319337,9.999e-05,2]
[405971903,1771486147508,-328.10023537,9.999e-05,2]
[405971904,1771486147530,-500.0,9.999e-05,2]
[405971905,1771486147552,-500.0,9.999e-05,2]
[405971906,1771486147574,-500.0,9.999e-05,2]
[405971907,1771486147595,-493.78991172,9.999e-05,2]
[405971908,1771486147616,-500.0,9.999e-05,2]
[405971909,1771486147637,-500.0,9.999e-05,2]
[405971910,1771486147659,-500.0,9.999e-05,2]
[405971911,1771486147680,-500.0,9.999e-05,2]
[405971912,1771486147701,-500.0,9.999e-05,2]
[405971913,1771486147726,-500.0,9.999e-05,2]
[405971914,1771486147747,-500.0,9.999e-05,2]
[405971915,1771486147772,-343.99201427,9.999e-05,2]
[405971932,1771486231967,-566.01503087,0.0001,2]
[405971945,1771486238115,-3158.34040225,0.0001,2]
[405971946,1771486238137,-26970.61618943,0.0001,2]
[405971947,1771486238212,-207899.97128943,0.0001,2]
[405972019,1771486245712,-546.7832582,0.0001,2]
[405972022,1771486245730,-1400.20670523,0.0001,2]
[405972031,1771486246771,-7631.27172655,0.0001,2]
[405972032,1771486296504,10000.0,9e-05,2]
[405972033,1771486336783,8752.0,8e-05,2]
[405972103,1771487438471,-1177.46236945,8.864e-05,2]
[405972104,1771487438481,-2087.18885454,8.954e-05,2]
[405972105,1771487438490,-150.0,9.089e-05,2]
[405972106,1771487438500,-1220.5705867,9.394e-05,2]
[405972107,1771487438510,-300.0,9.722e-05,2]
[405972108,1771487438520,-430.0,9.722e-05,2]
[405972109,1771487438530,-500.0,9.722e-05,2]
[405972110,1771487438539,-500.0,9.722e-05,2]
[405972111,1771487438548,-150.0,9.722e-05,2]
[405972112,1771487438557,-500.0,9.722e-05,2]
[405972113,1771487438567,-500.0,9.723e-05,2]
[405972114,1771487438576,-500.0,9.723e-05,2]
[405972115,1771487438586,-175.92374289,9.723e-05,2]
[405972116,1771487438595,-154.13297903,9.723e-05,2]
[405972117,1771487438604,-500.0,9.723e-05,2]
[405972118,1771487438613,-150.0,9.723e-05,2]
[405972119,1771487438623,-150.90871297,9.724e-05,2]
[405972120,1771487438633,-150.0,9.724e-05,2]
[405972121,1771487438643,-168.28785032,9.724e-05,2]
[405972122,1771487438652,-284.86198359,9.724e-05,2]
[405972123,1771487438662,-151.83426459,9.724e-05,2]
[405972124,1771487438671,-500.0,9.724e-05,2]
[405972125,1771487438680,-150.0,9.724e-05,2]
[405972126,1771487438690,-150.0,9.724e-05,2]
[405972127,1771487438699,-217.42369649,9.724e-05,2]
[405972128,1771487438708,-150.0,9.724e-05,2]
[405972129,1771487438717,-152.95895749,9.724e-05,2]
[405972130,1771487438727,-500.0,9.777e-05,2]
[405972131,1771487438736,-500.0,9.777e-05,2]
[405972132,1771487438745,-150.0,9.777e-05,2]
[405972133,1771487438754,-500.0,9.777e-05,2]
[405972134,1771487438764,-500.0,9.777e-05,2]
[405972135,1771487438773,-217.36667176,9.777e-05,2]
[405972136,1771487438782,-500.0,9.777e-05,2]
[405972137,1771487438792,-500.0,9.777e-05,2]
[405972138,1771487438801,-500.0,9.777e-05,2]
[405972139,1771487438810,-500.0,9.777e-05,2]
[405972140,1771487438819,-399.63834427,9.777e-05,2]
[405972141,1771487438829,-428.75335098,9.777e-05,2]
[405972142,1771487438838,-500.0,9.777e-05,2]
[405972143,1771487438847,-500.0,9.777e-05,2]
[405972144,1771487438857,-513.47968226,9.777e-05,2]
[405972145,1771487438867,-500.0,9.777e-05,2]
[405972146,1771487438876,-500.0,9.777e-05,2]
[405972147,1771487438885,-208.32785695,9.777e-05,2]
[405972148,1771487438895,-500.0,9.777e-05,2]
[405972149,1771487438904,-644.49801918,9.777e-05,2]
[405972150,1771487438913,-500.0,9.777e-05,2]
[405972151,1771487438922,-500.0,9.777e-05,2]
[405972152,1771487438932,-500.0,9.777e-05,2]
[405972153,1771487438941,-500.0,9.777e-05,2]
[405972154,1771487438951,-500.0,9.777e-05,2]
[405972155,1771487438960,-500.0,9.777e-05,2]
[405972156,1771487438969,-500.0,9.777e-05,2]
[405972157,1771487438979,-500.0,9.777e-05,2]
[405972158,1771487438989,-500.0,9.777e-05,2]
[405972159,1771487438998,-500.0,9.777e-05,2]
[405972160,1771487439007,-500.0,9.777e-05,2]
[405972161,1771487439017,-500.0,9.777e-05,2]
[405972162,1771487439026,-500.0,9.777e-05,2]
[405972163,1771487439035,-500.0,9.777e-05,2]
[405972164,1771487439045,-500.0,9.777e-05,2]
[405972165,1771487439054,-500.0,9.777e-05,2]
[405972166,1771487439063,-500.0,9.777e-05,2]
[405972167,1771487439073,-500.0,9.777e-05,2]
[405972168,1771487439082,-272.85136048,9.777e-05,2]
[405972169,1771487439092,-500.0,9.777e-05,2]
[405972170,1771487439104,-500.0,9.777e-05,2]
[405972171,1771487439114,-500.0,9.777e-05,2]
[405972172,1771487439123,-500.0,9.777e-05,2]
[405972173,1771487439135,-500.0,9.777e-05,2]
[405972174,1771487439144,-500.0,9.777e-05,2]
[405972175,1771487439153,-500.0,9.777e-05,2]
[405972176,1771487439163,-500.0,9.777e-05,2]
[405972177,1771487439175,-500.0,9.777e-05,2]
[405972178,1771487439184,-500.0,9.777e-05,2]
[405972179,1771487439193,-500.0,9.777e-05,2]
[405972180,1771487439203,-500.0,9.777e-05,2]
[405972181,1771487439211,-500.0,9.777e-05,2]
[405972182,1771487439220,-500.0,9.777e-05,2]
[405972183,1771487439230,-500.0,9.778e-05,2]
[405972184,1771487439239,-500.0,9.778e-05,2]
[405972185,1771487439249,-500.0,9.778e-05,2]
[405972186,1771487439258,-150.0,9.778e-05,2]
[405972187,1771487439267,-150.0,9.779e-05,2]
[405972188,1771487439276,-500.0,9.779e-05,2]
[405972189,1771487439285,-151.50859279,9.779e-05,2]
[405972190,1771487439295,-150.0,9.779e-05,2]
[405972191,1771487439304,-151.48029579,9.779e-05,2]
[405972192,1771487439313,-203.2,9.8e-05,2]
[405972193,1771487439322,-500.0,9.832e-05,2]
[405972194,1771487439331,-500.0,9.832e-05,2]
[405972195,1771487439340,-200.0,9.832e-05,2]
[405972196,1771487439350,-500.0,9.832e-05,2]
[405972197,1771487439363,-263.93113434,9.832e-05,2]
[405972198,1771487439373,-155.21615516,9.833e-05,2]
[405972199,1771487439382,-500.0,9.833e-05,2]
[405972200,1771487439392,-233.88820602,9.833e-05,2]
[405972201,1771487439401,-150.0,9.833e-05,2]
[405972202,1771487439411,-500.0,9.833e-05,2]
[405972203,1771487439420,-150.0,9.834e-05,2]
[405972204,1771487439430,-213.64538536,9.834e-05,2]
[405972205,1771487439440,-186.89188245,9.834e-05,2]
[405972206,1771487439450,-500.0,9.886e-05,2]
[405972207,1771487439460,-500.0,9.886e-05,2]
[405972208,1771487439470,-500.0,9.886e-05,2]
[405972209,1771487439481,-500.0,9.887e-05,2]
[405972210,1771487439491,-150.0,9.887e-05,2]
[405972211,1771487439501,-150.0,9.888e-05,2]
[405972212,1771487439511,-630.877447,9.941e-05,2]
[405972213,1771487439521,-500.0,9.941e-05,2]
[405972214,1771487439531,-500.0,9.942e-05,2]
[405972215,1771487439542,-187.00031284,9.942e-05,2]
[405972216,1771487439551,-251.19222817,9.943e-05,2]
[405972217,1771487439560,-500.0,9.996e-05,2]
[405972218,1771487439570,-278.76119084,9.997e-05,2]
[405972219,1771487439579,-9000.0,9.999e-05,2]
[405972220,1771487439588,-2328.04465594,9.999e-05,2]
[405972221,1771487439599,-44617.08539804,0.0001,2]
[405972222,1771487439608,-500.0,0.00010051,2]
[405972223,1771487439618,-337.98318211,0.00010106,2]
[405972224,1771487439627,-2383.65961918,0.00010106,2]
[405972225,1771487439636,-494.52539816,0.00010107,2]
[405972226,1771487439645,-300.0,0.00010199,2]
[405972227,1771487439655,-300.0,0.00010199,2]
[405972228,1771487439664,-300.0,0.00010199,2]
[405972229,1771487439673,-300.0,0.00010199,2]
[405972230,1771487439683,-300.0,0.00010199,2]
[405972231,1771487439693,-300.0,0.00010199,2]
[405972232,1771487439702,-300.0,0.00010199,2]
[405972233,1771487439711,-300.0,0.00010199,2]
[405972234,1771487439720,-300.0,0.00010199,2]
[405972235,1771487439730,-300.0,0.00010199,2]
[405972236,1771487439739,-300.0,0.00010199,2]
[405972237,1771487439748,-300.0,0.00010199,2]
[405972238,1771487439758,-300.0,0.00010199,2]
[405972239,1771487439767,-300.0,0.00010199,2]
[405972240,1771487439776,-300.0,0.00010199,2]
[405972241,1771487439786,-4009.93152997,0.00010622,2]
[405972242,1771487439795,-199.0,0.00010694,2]
[405972243,1771487439804,-3546.74865165,0.00010818,2]
[405972244,1771487439813,-4753.0443459,0.00010959,2]
[405972245,1771487439822,-177.0,0.00011089,2]
[405972246,1771487439831,-3718.5686225,0.00011529,2]
[405972247,1771487439841,-250.0,0.00012089,2]
[405972248,1771487439850,-4458.71618848,0.00012241,2]
[405972249,1771487439860,-265.62,0.00012329,2]
[405972250,1771487439870,-221.35,0.00012329,2]
[405972251,1771487439879,-184.46,0.00012329,2]
[405972252,1771487439888,-153.71,0.00012329,2]
[405972253,1771487439898,-768.6,0.00012329,2]
[405972254,1771487439907,-1394.714124,0.00012892,2]
[405972255,1771487439919,-2793.82431749,0.000129,2]
[405972256,1771487439928,-4709.83768412,0.00012953,2]
[405972257,1771487439938,-204.0,0.00013089,2]
[405972258,1771487439947,-203.78715812,0.00013377,2]
[405972259,1771487439957,-500.0,0.00013424,2]
[405972260,1771487439966,-500.0,0.00013424,2]
[405972261,1771487439976,-258.98587924,0.00013424,2]
[405972262,1771487439985,-500.0,0.00013424,2]
[405972263,1771487439995,-1394.714124,0.00013435,2]
[405972264,1771487440005,-597.03969786,0.00013479,2]
[405972265,1771487440014,-500.0,0.00013479,2]
[405972266,1771487440024,-500.0,0.00013479,2]
[405972267,1771487440033,-634.75689165,0.00013534,2]
[405972268,1771487440043,-500.0,0.00013534,2]
[405972269,1771487440053,-500.0,0.00013588,2]
[405972270,1771487440062,-500.0,0.00013643,2]
[405972271,1771487440072,-5198.86375459,0.00013665,2]
[405972272,1771487440081,-500.0,0.00013698,2]
[405972273,1771487440090,-645.98,0.00013698,2]
[405972274,1771487440104,-645.98,0.00013698,2]
[405972275,1771487440113,-645.98,0.00013698,2]
[405972276,1771487440122,-645.98,0.00013698,2]
[405972277,1771487440132,-645.98,0.00013698,2]
[405972278,1771487440145,-645.98,0.00013698,2]
[405972279,1771487440154,-645.98,0.00013698,2]
[405972280,1771487440163,-645.98,0.00013698,2]
[405972281,1771487440174,-645.98,0.00013698,2]
[405972283,1771487440183,-645.98,0.00013698,2]
[405972284,1771487440193,-645.98,0.00013698,2]
[405972285,1771487440202,-645.98,0.00013698,2]
[405972286,1771487440211,-645.98,0.00013698,2]
[405972287,1771487440220,-645.98,0.00013698,2]
[405972288,1771487440229,-645.98,0.00013698,2]
[405972290,1771487440238,-645.98,0.00013698,2]
[405972292,1771487440247,-500.0,0.00013698,2]
[405972293,1771487440257,-620.08307918,0.00013698,2]
[405972295,1771487440266,-500.0,0.00013698,2]
[405972296,1771487440275,-500.0,0.00013698,2]
[405972297,1771487440284,-500.0,0.00013698,2]
[405972298,1771487440293,-500.0,0.00013698,2]
[405972299,1771487440302,-500.0,0.00013698,2]
[405972300,1771487440311,-500.0,0.00013698,2]
[405972301,1771487440321,-500.0,0.00013698,2]
[405972302,1771487440330,-500.0,0.00013698,2]
[405972303,1771487440339,-500.0,0.00013698,2]
[405972304,1771487440348,-418.85316712,0.00013698,2]
[405972305,1771487440357,-464.787322,0.00013698,2]
[405972306,1771487440367,-500.0,0.00013698,2]
[405972307,1771487440376,-500.0,0.00013698,2]
[405972308,1771487440385,-500.0,0.00013698,2]
[405972309,1771487440395,-500.0,0.00013698,2]
[405972310,1771487440405,-500.0,0.00013698,2]
[405972311,1771487440414,-500.0,0.00013698,2]
[405972312,1771487440424,-500.0,0.00013698,2]
[405972313,1771487440433,-500.0,0.00013698,2]
[405972314,1771487440443,-500.0,0.00013698,2]
[405972315,1771487440453,-500.0,0.00013698,2]
[405972316,1771487440463,-500.0,0.00013698,2]
[405972317,1771487440472,-500.0,0.00013698,2]
[405972318,1771487440481,-1000.0,0.00013699,2]
[405972319,1771487440491,-4040.5493932,0.00013699,2]
[405972320,1771487440500,-500.0,0.00013699,2]
[405972321,1771487440510,-500.0,0.00013699,2]
[405972323,1771487440608,-500.0,0.00013699,2]
[405972325,1771487440618,-500.0,0.00013699,2]
[405972327,1771487440628,-500.0,0.00013699,2]
[405972329,1771487440637,-500.0,0.00013699,2]
[405972331,1771487440646,-500.0,0.00013699,2]
[405972333,1771487440656,-500.0,0.00013699,2]
[405972335,1771487440665,-500.0,0.00013699,2]
[405972338,1771487440678,-500.0,0.00013699,2]
[405972340,1771487440687,-500.0,0.00013699,2]
[405972342,1771487440697,-500.0,0.00013699,2]
[405972344,1771487440705,-500.0,0.00013699,2]
[405972346,1771487440715,-500.0,0.00013699,2]
[405972348,1771487440724,-500.0,0.00013699,2]
[405972350,1771487440733,-500.0,0.00013699,2]
[405972352,1771487440742,-500.0,0.00013699,2]
[405972354,1771487440751,-500.0,0.00013699,2]
[405972356,1771487440761,-500.0,0.00013699,2]
[405972358,1771487440770,-500.0,0.00013699,2]
[405972360,1771487440779,-500.0,0.00013699,2]
[405972362,1771487440788,-500.0,0.00013699,2]
[405972364,1771487440797,-500.0,0.00013699,2]
[405972366,1771487440806,-500.0,0.00013699,2]
[405972368,1771487440815,-500.0,0.00013699,2]
[405972370,1771487440825,-500.0,0.00013699,2]
[405972372,1771487440834,-500.0,0.00013699,2]
[405972374,1771487440843,-500.0,0.00013699,2]
[405972376,1771487440852,-500.0,0.00013699,2]
[405972378,1771487440861,-500.0,0.00013699,2]
[405972380,1771487440870,-455.6456964,0.00013699,2]
[405972382,1771487440879,-500.0,0.00013699,2]
[405972383,1771487440888,-500.0,0.00013699,2]
[405972386,1771487440897,-500.0,0.00013699,2]
[405972388,1771487440906,-500.0,0.00013753,2]
[405972390,1771487440916,-500.0,0.00013808,2]
[405972392,1771487440925,-500.0,0.00013862,2]
[405972393,1771487440934,-500.0,0.00013917,2]
[405972395,1771487440944,-500.0,0.00013972,2]
[405972397,1771487440953,-1394.714124,0.00013978,2]
[405972400,1771487440962,-500.0,0.00014027,2]
[405972401,1771487440971,-481.36,0.00014075,2]
[405972404,1771487440982,-418.9144379,0.00014082,2]
[405972405,1771487440991,-187.4941649,0.00014164,2]
[405972408,1771487441000,-500.0,0.00014174,2]
[405972410,1771487441010,-500.0,0.00014174,2]
[405972412,1771487441019,-2793.82431745,0.00014217,2]
[405972414,1771487441028,-1394.714124,0.0001452,2]
[405972415,1771487441038,-1394.714124,0.00015063,2]
[405972417,1771487441047,-5939.01132071,0.00015088,2]
[405972420,1771487441056,-231.0,0.0001509,2]
[405972422,1771487441065,-302.0,0.00015599,2]
[405972423,1771487441074,-1394.714124,0.00015606,2]
[405972426,1771487441084,-6679.15888683,0.000158,2]
[405972427,1771487441096,-601.70880675,0.00016438,2]
[405972429,1771487441107,-7036.01574907,0.00016512,2]
[405972431,1771487441116,-500.0,0.00016675,2]
[405972433,1771487441126,-545.92888316,0.00016675,2]
[405972435,1771487441137,-151.0,0.00016936,5]
[405972437,1771487441146,-531.24,0.0001698,3]
[405972439,1771487441155,-53461.30895353,0.0001699,2]
[405972441,1771487441164,-500.41,0.0001699,3]
[405972443,1771487441174,-2124.95,0.0001699,3]
[405972445,1771487441183,-1062.47,0.0001699,3]
[405972447,1771487441193,-645.98,0.00016999,2]
[405972449,1771487441202,-500.0,0.00016999,2]
[405972451,1771487441211,-17925.81263208,0.00017,2]
[405972453,1771487441220,-258.0,0.0001709,2]
[405972455,1771487441229,-7419.30645295,0.00017224,2]
[405972457,1771487441238,-332.0,0.00017257,2]
[405972459,1771487441247,-157.138,0.00017289,2]
[405972461,1771487441257,-500.0,0.00017299,2]
[405972464,1771487441266,-500.0,0.00017299,2]
[405972466,1771487441277,-500.0,0.00017299,2]
[405972468,1771487441286,-500.0,0.00017299,2]
[405972470,1771487441295,-85152.59477903,0.000173,2]
[405972472,1771487441304,-151.0,0.000173,2]
[405972474,1771487441313,-429.0,0.000174,2]
[405972476,1771487441322,-8159.45401907,0.00017935,2]
[405972478,1771487441331,-645.98,0.00017999,2]
[405972480,1771487441340,-500.0,0.00017999,2]
[405972482,1771487441350,-500.0,0.00017999,2]
[405972484,1771487441360,-22267.25,0.00018,120]
[405972486,1771487441369,-500.0,0.00018308,2]
[405972488,1771487441379,-1062.48,0.0001835,3]
[405972490,1771487441388,-1000.82,0.0001836,3]
[405972492,1771487441397,-4249.9,0.0001836,3]
[405972494,1771487441407,-2124.94,0.0001836,3]
[405972496,1771487441418,-151.0,0.000184,2]
[405972498,1771487441428,-8199.10478154,0.00018647,2]
[405972499,1771487441437,-2793.82431745,0.000187,2]
[405972502,1771487441447,-623.41980092,0.00018875,2]
[405972503,1771487441457,-285.0,0.0001909,2]
[405972505,1771487441466,-266.09,0.000192,2]
[405972507,1771487441476,-8899.60158519,0.00019359,2]
[405972509,1771487441486,-533.31,0.00019359,2]
[405972511,1771487441495,-533.31,0.00019359,2]
[405972513,1771487441504,-533.31,0.00019359,2]
[405972515,1771487441513,-533.31,0.00019359,2]
[405972517,1771487441523,-533.31,0.00019359,2]
[405972519,1771487441532,-533.31,0.00019359,2]
[405972522,1771487441541,-533.31,0.00019359,2]
[405972524,1771487441550,-533.31,0.00019359,2]
[405972525,1771487441559,-533.31,0.00019359,2]
[405972528,1771487441569,-533.31,0.00019359,2]
[405972530,1771487441578,-533.31,0.00019359,2]
[405972532,1771487441587,-533.31,0.00019359,2]
[405972533,1771487441597,-533.31,0.00019359,2]
[405972536,1771487441607,-533.31,0.00019359,2]
[405972538,1771487441616,-533.31,0.00019359,2]
[405972540,1771487441626,-533.31,0.00019359,2]
[405972542,1771487441635,-542.08,0.00019359,2]
[405972544,1771487441644,-151.0,0.000196,2]
[405972546,1771487441654,-9243.2415266,0.00020071,2]
[405972548,1771487441664,-500.0,0.00020133,2]
[405972550,1771487441673,-168.85,0.000202,2]
[405972552,1771487441683,-151.0,0.000207,3]
[405972554,1771487441692,-9639.74915131,0.00020782,2]
[405972555,1771487441702,-151.0,0.00020833,6]
[405972558,1771487441711,-151.0,0.00020843,2]
[405972559,1771487441720,-1443.499,0.00020895,2]
[405972561,1771487441731,-639.306,0.00020895,2]
[405972563,1771487441742,-2239.627,0.00020895,2]
[405972565,1771487441751,-195.509,0.00020895,2]
[405972567,1771487441761,-491.855,0.00020895,2]
[405972569,1771487441771,-501.64,0.00021,7]
[405972571,1771487441780,-154.587817,0.00021,2]
[405972573,1771487441789,-312.0,0.0002109,2]
[405972575,1771487441798,-9930.52140943,0.00021494,2]
[405972577,1771487441807,-332.46,0.000218,2]
[405972579,1771487441816,-151.0,0.000219,4]
[405972581,1771487441826,-150.0,0.00021918,2]
[405972583,1771487441836,-150.0,0.00021918,2]
[405972586,1771487441846,-2290.0,0.00022,6]
[405972588,1771487441855,-6800.94,0.00022,6]
[405972590,1771487441865,-211.46,0.00022,7]
[405972592,1771487441874,-3370.71,0.00022,2]
[405972594,1771487441883,-151.0,0.00022,2]
[405972596,1771487441892,-154.214515,0.00022,2]
[405972598,1771487441901,-85305.52,0.00022,2]
[405972600,1771487441911,-300.0,0.00022466,2]
[405972602,1771487441920,-200.0,0.00022466,2]
[405972603,1771487441929,-10617.80129225,0.00022918,2]
[405972606,1771487441939,-151.0,0.00023,9]
[405972608,1771487441948,-743.60641596,0.00023,3]
[405972610,1771487441957,-450.0,0.00023014,2]
[405972612,1771487441966,-250.0,0.00023014,2]
[405972614,1771487441975,-2793.82431745,0.00023184,2]
[405972616,1771487441985,-151.0,0.000234,9]
[405972617,1771487441994,-170085.0975084,0.00023463,2]
[405972631,1771487442109,-273289.34670309,0.00023463,2]
[405972633,1771487442120,-42164.68750019,0.00023463,2]
[405973073,1771487446404,-989.17960489,0.0002199,10]
[405973156,1771487447188,-81.40406602,0.0002199,10]
[405978405,1771488100362,-2703.67745299,0.00012328,2]
[405978406,1771488100388,-594.0,0.00012328,2]
[405978407,1771488100414,-280.58834369,0.00013013,2]
[405978408,1771488100431,-500.0,0.00013698,2]
[405978409,1771488100440,-500.0,0.00013698,2]
[405978410,1771488100449,-500.0,0.00013698,2]
[405978411,1771488100458,-500.0,0.00013698,2]
[405978412,1771488100468,-500.0,0.00013698,2]
[405978413,1771488100476,-203.67745299,0.00013698,2]
[405978414,1771488100487,-296.32254701,0.00013698,2]
[405978415,1771488100497,-297.67745299,0.00013698,2]
[405978416,1771488100507,-202.32254701,0.00013698,2]
[405978417,1771488100517,-78.26579668,0.00013698,2]
[405978418,1771488100528,-297.81856417,0.00013698,2]
[405978419,1771488100537,-184.58221494,0.00013971,2]
[405978592,1771488638575,-201.38404552,0.00013699,2]
[405978594,1771488638585,-166.26798775,0.00013699,2]
[405978596,1771488638595,-615.0,0.00013699,2]
[405978598,1771488638605,-251.18143164,0.00013834,2]
[405978600,1771488638614,-300.0,0.0001397,2]
[405978602,1771488638623,-256.0,0.0001397,2]
[405978604,1771488638632,-300.0,0.0001397,2]
[405978606,1771488638641,-300.0,0.0001397,2]
[405978608,1771488638651,-1200.0,0.0001397,2]
[405978610,1771488638660,-115.41778506,0.00013971,2]
[405978612,1771488638670,-300.0,0.00013971,2]
[405978614,1771488638679,-300.0,0.00013971,2]
[405978616,1771488638688,-300.0,0.00013971,2]
[405978618,1771488638698,-300.0,0.00013971,2]
[405978620,1771488638708,-300.0,0.00013971,2]
[405978622,1771488638717,-300.0,0.00013971,2]
[405978624,1771488638726,-300.0,0.00013971,2]
[405978626,1771488638735,-300.0,0.00013971,2]
[405978628,1771488638745,-300.0,0.00013971,2]
[405978630,1771488638755,-300.0,0.00013971,2]
[405978632,1771488638764,-300.0,0.00013971,2]
[405978634,1771488638773,-300.0,0.00013971,2]
[405978636,1771488638782,-300.0,0.00013971,2]
[405978638,1771488638792,-300.0,0.00013971,2]
[405978640,1771488638801,-600.0,0.00014249,2]
[405978642,1771488638810,-1296.81457579,0.00015388,2]
[405978721,1771488640904,-238.96961397,0.00015388,2]
[405978722,1771488640913,-294.0,0.00015599,2]
[405978723,1771488640923,-558.60276905,0.00015674,2]
[405978737,1771488646716,-161.39723095,0.00015674,2]
[405978738,1771488646726,-165.13639911,0.00016438,2]
[405978739,1771488646735,-331.80623752,0.00017242,2]
[405978740,1771488647552,-532.19376248,0.00017242,2]
[405978741,1771488647562,-317.181978,0.00017309,2]
[405978742,1771488647572,-150.0,0.00017808,2]
[405978743,1771488647581,-500.0,0.00017998,2]
[405978744,1771488647591,-168.16440914,0.00017998,2]
[405978745,1771488647601,-500.0,0.00017998,2]
[405978746,1771488647611,-550.1433515,0.00017998,2]
[405978747,1771488647621,-500.0,0.00017998,2]
[405978748,1771488647631,-500.0,0.00017998,2]
[405978749,1771488647641,-500.0,0.00017998,2]
[405978750,1771488647650,-347.05322439,0.00017998,2]
[405978751,1771488647659,-500.0,0.00017998,2]
[405978752,1771488647669,-429.71545086,0.00017998,2]
[405980059,1771489271996,-1503.9815687,0.00014468,2]
[405980060,1771489272019,-499.7875191,0.00014761,2]
[405980061,1771489282200,-180.21012432,0.000151,2]
[405980062,1771489282220,-180.21012432,0.000151,2]
[405980063,1771489282239,-180.21012432,0.00015332,2]